Cogmind - Beta 17.1 @@@ ROGUE MODE // 2026.08.24 @ 19:04:14 Player: Minty Result: Destroyed by X4-SIE(R) with Subdweller Laser Performance ------------- Evolutions (0) 0 Regions Visited (2) 400 Robots Destroyed (17) 85 Value Destroyed (528) 528 Prototype IDs (3) 60 Alien Tech Used (0) 0 Bonus (5900) 5900 TOTAL SCORE: 6973 Bonus ------- Prayed to X0-1V1 5000 Major X0-1V1 Interference 900 Cogmind --------- Core Integrity 0/150 Matter 261/700 Energy 480/480 System Corruption 2% Temperature Cool (6) Movement Treading (145) Location -10/Subcaves Parts ------- > --- POWER (1) -------- Cooled Ion Engine (fused) > --- PROPULSION (2) --- Advanced Treads (fused) Improved Medium Treads (fused) > --- UTILITY (2) ------ Visual Processing Unit Self-contained Transmogrifier > --- WEAPON (2) ------- Makeshift Sword > --- INVENTORY (5) ---- Ion Engine Wheel Wheel Dirty Datajack (16) Multitool Peak State ------------ > --- POWER ------------ Cooled Ion Engine > --- PROPULSION ------- Advanced Treads Spiked Medium Treads > --- UTILITY ---------- Small Storage Unit Self-contained Transmogrifier > --- WEAPON ----------- Dirty Datajack Makeshift Sword > --- INVENTORY -------- Ion Engine Wheel Wheel Assault Rifle Assault Rifle Multitool [Rating: 31] Favorites ----------- Power Cooled Ion Engine Engine Cooled Ion Engine Propulsion Light Treads Treads Light Treads Leg Aluminum Leg Utility Small Storage Unit Device Self-contained Transmogrifier Storage Small Storage Unit Processor Visual Processing Unit Weapon Subdweller Machine Gun Energy Gun EM Pulse Gun Ballistic Gun Subdweller Machine Gun Launcher Grenade Launcher Special Weapon Flamer Slashing Weapon Makeshift Sword Special Melee Weapon Dirty Datajack Build | -11 -10 -10 ------- Run | Yrd Mat Sub Slots Evolved . | . . . Power . | . . . Propulsion . | . . . Utility . | . . . Weapon . | . . . Parts Attached 13 | . 2 11 Power 1 | . . 1 Engine 1 | . . 1 Core . | . . . Reactor . | . . . Propulsion 2 | . . 2 Treads 2 | . . 2 Leg . | . . . Wheel . | . . . Hover . | . . . Flight . | . . . Utility 3 | . 1 2 Device 1 | . 1 . Storage . | . . . Processor 2 | . . 2 Hackware . | . . . Protection . | . . . Artifact . | . . . Weapon 7 | . 1 6 Energy Gun 1 | . . 1 Energy Cannon . | . . . Ballistic Gun 3 | . . 3 Ballistic Cannon . | . . . Launcher 1 | . 1 . Special Weapon . | . . . Impact Weapon . | . . . Slashing Weapon 1 | . . 1 Piercing Weapon . | . . . Special Melee Weapon 1 | . . 1 Unidentified Prototypes 1 | . 1 . Parts Lost 4 | . . 4 Power 1 | . . 1 Propulsion 1 | . . 1 Utility . | . . . Weapon 2 | . . 2 Highest Loss Streak 3 | . . 3 To Critical Strikes . | . . . Average Backups 6 | . 6 6 Power 1 | . 1 1 Propulsion 2 | . 4 2 Utility . | . . . Weapon 1 | . 1 1 Tool/Special . | . . . Unused Backups 12 | . 5 7 Power 3 | . 1 2 Propulsion 5 | . 2 3 Utility 1 | . 1 . Weapon 2 | . 1 1 Tool/Special 1 | . . 1 Average Slot Usage (%) 93 | . 86 93 Engine 12 | . 14 12 Treads 22 | . . 24 Leg 5 | . 28 3 Device 8 | . 1 8 Storage 11 | . 14 11 Processor 7 | . . 7 Energy Gun 2 | . 14 1 Ballistic Gun 8 | . 6 8 Launcher 5 | . 7 5 Special Weapon 1 | . . 1 Slashing Weapon 5 | . . 5 Special Melee Weapon 1 | . . 1 Peak Build Rating 31 | . 19 31 Average Rating 18 | . 6 18 On Entrance 10 | 6 6 19 Avg Prop Armor Cover (%) 16 | . . 16 Naked Turns . | . . . Heaviest Build 20 | 12 14 20 Greatest Support 50 | 20 20 50 Greatest Overweight (x) . | . . . Average Overweight (x) . | . . . Largest Inventory Capacity 8 | . 8 8 Average Capacity 7 | . 8 7 Most Carried 8 | . 7 8 Average Carried 6 | . 6 6 Final Capacity 8 | 8 8 5 Final Carried 7 | 6 7 5 Transmogrified Parts 12 | . . 12 Integrity Recovered 317 | . . 317 Class Distribution -------------------- 100% | Mutant Dominant Class ---------------- Mutant | -10/Materials Mutant | -10/Subcaves Resources | -11 -10 -10 ----------- Run | Yrd Mat Sub Matter Collected 563 | 200 . 363 Remotely . | . . . Salvage Created 395 | . 59 336 Parts 30 | . 6 24 Haulers Intercepted . | . . . Recyclers Shooed . | . . . Parts Field Recycled . | . . . Retrieved Matter . | . . . Parts Self-Destructed 18 | . . 18 Prevented . | . . . Parts Restored . | . . . Kills | -11 -10 -10 ------- Run | Yrd Mat Sub Combat Hostiles Destroyed 16 | . 2 14 Melee 5 | . . 5 Guns 3 | . . 3 AOE 8 | . 2 6 Classes Destroyed 5 | . 2 3 Tunneler 1 | . 1 . Swarmer 4 | . . 4 Grunt 2 | . 2 . Artisan 1 | . . 1 Subdweller 10 | . . 10 Best Kill Streak 5 | . 3 5 Combat Bots Only 5 | . 2 5 Max Kills in Single Turn 2 | . 2 1 Gunslinging . | . . . Exploded 2 | . 2 1 Melee 1 | . . 1 Uniques/NPCs Destroyed . | . . . Combat | -11 -10 -10 -------- Run | Yrd Mat Sub Hostile Shots Fired 82 | . 6 76 Missed 24 | . 1 23 Hits 58 | . 5 53 Projectile 58 | . 5 53 Critical Strikes 2 | . . 2 Damage Taken 966 | . 70 896 Core 217 | . 17 200 Absorbed by Shields . | . . . Core Remaining (%) 100 | 100 . . Volleys Fired 39 | . 7 32 Largest 2 | . 2 2 Hottest 70 | . 70 70 Shots Fired 55 | . 10 45 Gun 28 | . 4 24 Cannon . | . . . Launcher 27 | . 6 21 Special . | . . . Kinetic 21 | . 1 20 Thermal . | . . . Explosive 27 | . 6 21 Electromagnetic 7 | . 3 4 Robot Hit Streak 13 | . 2 13 Robot Miss Streak 3 | . 1 3 Penetration Max . | . . . Secondary Targets . | . . . Shots Hit Robots 47 | . 5 42 Core Hits 31 | . 4 27 Critical Kills . | . . . Critical Parts Destroyed . | . . . Critical Strikes 1 | . . 1 Destroy 1 | . . 1 Melee Attacks 21 | . . 21 Impact . | . . . Slashing 17 | . . 17 Piercing 4 | . . 4 Sneak Attacks 2 | . . 2 Combat Hostiles 1 | . . 1 Follow-up Attacks . | . . . Damage Inflicted 1835 | . 211 1624 Guns 347 | . 46 301 Cannons . | . . . Explosions 1093 | . 165 928 Melee 360 | . . 360 Ramming 35 | . . 35 Kinetic 280 | . 11 269 Thermal . | . . . Explosive 1093 | . 165 928 Electromagnetic 67 | . 35 32 Impact . | . . . Slashing 352 | . . 352 Piercing 8 | . . 8 Highest Corruption 2 | . . 2 Average Corruption 2 | . . 2 Corruption Purged . | . . . Corruption Blocked . | . . . Effects 11 | . . 11 Message Errors 1 | . . 1 Matter Fused 5 | . . 5 Heat Flow Errors 1 | . . 1 Data Loss (minor) 3 | . . 3 Data Loss (major) 1 | . . 1 Overload Shots . | . . . Overflow Damage 15 | . . 15 Projectiles . | . . . Explosions . | . . . Melee 15 | . . 15 Knockbacks 1 | . . 1 Impact 1 | . . 1 Kinetic . | . . . Secondary . | . . . Self-Inflicted Damage 9 | . . 9 Shots 1 | . . 1 Rammed 24 | . . 24 Targets Rammed 24 | . . 24 Kicked . | . . . Crushed . | . . . Highest Temperature 147 | . 13 147 Average Temperature 32 | . 7 84 Received Heat Transfer 168 | . 39 129 Siege Activations . | . . . Martial Activations . | . . . Shielding Activations . | . . . Robots Disrupted . | . . . Combat Hostiles . | . . . Robots Corrupted . | . . . Combat Hostiles . | . . . Parts Fried . | . . . Impact Corruptions . | . . . Robots Melted . | . . . Combat Hostiles . | . . . Parts Melted . | . . . Heat Transferred . | . . . Parts Sabotaged . | . . . Parts Stolen . | . . . Parts Stripped . | . . . Power Chain Reactions . | . . . Alert | -11 -10 -10 ------- Run | Yrd Mat Sub Maximum Alert Level . | . . . Low Security (%) 100 | . 100 . Level 1 . | . . . Level 2 . | . . . Level 3 . | . . . Level 4 . | . . . Level 5 . | . . . High Security . | . . . Max Security . | . . . Peak Influence 71 | . 71 . Initial . | . . . Average 30 | . 30 . Influence Increases 196 | . 71 125 Destroy 0b10 Robot/C 120 | . 40 80 Destroy 0b10 Robot/NC 5 | . 5 . Destroy Leader 10 | . 10 . Destroy Structure 16 | . 16 . Lose Combat Pursuer 45 | . . 45 Influence Decreases 196 | . 20 176 Entered New Map 25 | . . 25 Time Decay 171 | . 20 151 Squads Dispatched . | . . . Investigation . | . . . Extermination . | . . . Reinforcement . | . . . Assault . | . . . Garrison . | . . . Intercept . | . . . Searches Triggered . | . . . Construction Impeded . | . . . Haulers Reinforced . | . . . Active Scanning Responses . | . . . Cargo Convoy Interrupts . | . . . Stealth | -11 -10 -10 --------- Run | Yrd Mat Sub Distress Signals 1 | . 1 . Communications Jammed . | . . . Distress Signals . | . . . Times Spotted 19 | . 4 15 Peak Tracking Total 6 | . 3 6 Tactical Retreats 1 | . . 1 Traps | -11 -10 -10 ------- Run | Yrd Mat Sub Traps Triggered 2 | . . 2 Indirectly . | . . . Trap Hack Attempts . | . . . Triggered . | . . . Disarmed . | . . . Reprogrammed . | . . . Reused . | . . . Traps Extracted . | . . . Installed . | . . . Triggered . | . . . Machines | -11 -10 -10 ---------- Run | Yrd Mat Sub Machines Disabled . | . . . Max in Single Turn . | . . . Machines Repaired . | . . . Machines Dismantled . | . . . Machines Sabotaged . | . . . Overloaded Fab Kills . | . . . Hacking | -11 -10 -10 --------- Run | Yrd Mat Sub Machines Accessed 1 | . 1 . Terminals 1 | . 1 . Fabricators . | . . . Repair Stations . | . . . Recycling Units . | . . . Scanalyzers . | . . . Garrison Access . | . . . Total Hacks 6 | . 6 . Successful 2 | . 2 . Failed 4 | . 4 . Catastrophic . | . . . Database Lockouts . | . . . Manual 4 | . 4 . Terminals 6 | . 6 . Fabricators . | . . . Repair Stations . | . . . Recycling Units . | . . . Scanalyzers . | . . . Garrison Access . | . . . Terminal Hacks 2 | . 2 . Maintenance Status 1 | . 1 . Zone Layout 1 | . 1 . Fabricator Hacks . | . . . Repair Station Hacks . | . . . Recycling Unit Hacks . | . . . Scanalyzer . | . . . Garrison Access Hacks . | . . . Unauthorized Hacks . | . . . Terminals . | . . . Fabricators . | . . . Repair Stations . | . . . Recycling Units . | . . . Scanalyzers . | . . . Garrison Access . | . . . Data Cores Recovered . | . . . Used . | . . . Hacking Detections 1 | . 1 . Full Trace Events . | . . . Feedback Events . | . . . Feedback Blocked . | . . . Robot Schematics Acquired . | . . . Robots Built . | . . . Authchips . | . . . Time . | . . . Total Robot Build Rating . | . . . Part Schematics Acquired . | . . . Parts Built . | . . . Authchips . | . . . Time . | . . . Total Part Build Rating . | . . . Part Studies Acquired . | . . . Parts Repaired . | . . . Time . | . . . Parts Recycled . | . . . Recycled Matter . | . . . Retrieved Matter . | . . . Retrieved Components . | . . . Parts Scanalyzed . | . . . Part Schematics Acquired . | . . . Parts Damaged . | . . . Bothacking | -11 -10 -10 ------------ Run | Yrd Mat Sub Used RIF Installer . | . . . Robots Hacked . | . . . Non-combat . | . . . Combat . | . . . Robot Hacks Applied . | . . . Relay Couplers Released . | . . . Fabnet Peak Effective % . | . . . Robots Rewired . | . . . Allies Hacked . | . . . Hacks Repelled . | . . . Allies | -11 -10 -10 -------- Run | Yrd Mat Sub Total Allies . | . . . Largest Group . | . . . Highest-Rated Group . | . . . Highest-Rated Ally . | . . . Total Orders . | . . . Ally Attacks . | . . . Total Damage . | . . . Kills . | . . . Allies Corrupted . | . . . Allies Melted . | . . . X0-1V1 Amusement Gains 39 | . 22 17 Average Entertainment 11 | . 22 11 Good Acts 9 | . . 9 Bad Acts 11 | . . 11 Intel | -11 -10 -10 ------- Run | Yrd Mat Sub Active Infowar (turns) 856 | . . 856 Optics 856 | . . 856 Robot Analysis Total . | . . . Derelict Logs Recovered 2 | . . 2 Drone Launches . | . . . Drone Recoveries . | . . . Exploration | -11 -10 -10 ------------- Run | Yrd Mat Sub Turns Passed 1576 | . 81 1495 Spaces Moved 872 | 1 51 820 Core . | . . . Treads 694 | . . 694 Legs 178 | 1 51 126 Wheels . | . . . Hover . | . . . Flight . | . . . Fastest Speed 120 | 120 120 120 Average Speed 146 | 120 120 148 Slowest Speed 170 | 120 120 170 Overloaded Moves . | . . . Propulsion Burnouts . | . . . Robots Hopped . | . . . Potential Cave-ins . | . . . Cave-ins Triggered . | . . . Exploration Rate (%) 23 | 2 15 53 Regions Visited 2 Branch Regions 1 Pre-discovered Areas 3 | . . 3 Known Exits Taken . | . . . Unknown Exits Taken 2 | 1 1 . Scrap Searched . | . . . Spaces Dug 5 | . . 5 Terrain Destroyed 101 | . 17 84 Melee 5 | . . 5 Projectile . | . . . AOE 96 | . 17 79 Terrain Rammed . | . . . Walls Destroyed . | . . . Machines Disabled . | . . . Actions | -11 -10 -10 --------- Run | Yrd Mat Sub Total 1083 | . 60 1023 Wait 99 | . . 99 Move 870 | . 50 820 Hop . | . . . Pick Up 5 | . 1 4 Fast Attach 6 | . 1 5 Attach 3 | . . 3 Detach 3 | . . 3 Swap 7 | . 1 6 Drop 6 | . . 6 Fire 39 | . 7 32 Melee 21 | . . 21 Ram . | . . . Kick . | . . . Crush 24 | . . 24 Escape Stasis . | . . . Rewire . | . . . Trap . | . . . Miscellaneous . | . . . Route ------- -11/Scrapyard -10/Materials -10/Subcaves (discovered 1 exit: [*Mat]) History --------- Turn | Location | Event 1 | -11/Scrapyard | Discovered new exit (range 0) 1 | -11/Scrapyard | Entered Materials 62 | -10/Materials | Discovered new exit (range 12) 77 | -10/Materials | Prayed at D.C.S.S. Altar Unit 82 | -10/Materials | Entered Subcaves 146 | -10/Subcaves | A swath of the cavern ceiling suddenly collapsed 189 | -10/Subcaves | X0-1V1 activates XOMVISION 293 | -10/Subcaves | Energy capacity permanently improved by X0-1V1 (+200; -100 max core) 304 | -10/Subcaves | Build established: Mutant 307 | -10/Subcaves | Lost 3 parts (1p1n1w) 325 | -10/Subcaves | Learned location of Zion (-7) 325 | -10/Subcaves | Met a Zionite searching for "candidates" 412 | -10/Subcaves | Learned location of Storage (-7) 445 | -10/Subcaves | A swath of the cavern ceiling suddenly collapsed 603 | -10/Subcaves | X0-1V1 caused items to flee you 612 | -10/Subcaves | Core integrity restored by X0-1V1 (+22) 632 | -10/Subcaves | X0-1V1 sent you into danger 742 | -10/Subcaves | Items stopped fleeing you 765 | -10/Subcaves | Discovered new exit (range 10) 769 | -10/Subcaves | Forcibly received Sfc. Transmogifier from X0-1V1 933 | -10/Subcaves | Shifting Twisted Machinery released Riot Gun 962 | -10/Subcaves | Shifting Twisted Machinery released Mak. Sword 1020 | -10/Subcaves | Core integrity fell below 50% 1103 | -10/Subcaves | X0-1V1 activates XOMVISION 1570 | -10/Subcaves | Core integrity fell below 20% 1577 | -10/Subcaves | Destroyed by X4-SIE(R) with Subdweller Laser Last Messages --------------- 01193_ IK-RQG(R) destroyed. 01195_ Acquired 43 matter. 01205_ System corrupted: Component data lost. 01257_ Dropped Assault Rifle. 01270_ Dropped Sml. Storage Unit. 01271_ Acquired Visual Processing Unit. X0-1V1's Piety Tracker suddenly appears amidst shimmering waves of color. 01318_ System corrupted: Heat flow error (+188). 01323_ Sensor data returns to normal. 01331_ Sfc. Transmogrifier converts Adv. Treads into Arm. Treads. 01357_ System corrupted: Matter fused (-9). 01361_ Sfc. Transmogrifier converts Arm. Treads into Adv. Treads. 01383_ System corrupted: Matter fused (-5). X0-1V1's Piety Tracker suddenly appears amidst shimmering waves of color. 01442_ Sfc. Transmogrifier converts Spk. Medium Treads into Imp. Medium Treads. 01471_ System corrupted: Component data lost. X0-1V1's Piety Tracker suddenly appears amidst shimmering waves of color. 01576_ J1-26S(R) destroyed. 01577_ X0-1V1 snickers! Map ----- +----------------------------------------------------+ | #????# ##??# #?????????????????????? | | ##???## #### ##?????????????????????? | | #????##### # ###????????????????????? | | #????????# ##???????????????????? | | ##????????## # ##???????????????????? | | ###??????????# ## ##???????????????????? | | #????????????# ### ## # #???????????????????? | | #????????????# ##?#### ##???????????????????? | | #????????????###????#^ #????????????????????? | | ###???????????????????# ^ #????????????????????? | | ????????????????????### #????????????????????? | | ????????????????????# #????????????????????? | | ???????????????????## ##????????????????????? | | ???????????????????# #?????????????????????? | | ???????????????????# #?????????????????????? | | ???????????????????### #?????????????????????? | | ?????????????????????## ###?????????????????????? | | ??????????????????????# #??????????????????????? | | ?????????????????????## ##?????????????????????? | | ?????????????????????# ##????????????????????? | | ?????????????????????## ! ##???????????????????? | | ??????????????????????# ##??????????????????? | | ?????????????????????## #??????????????????? | | ????###########?##??## R #??????????????????? | | ##### ##[ ## #?## &&= #??????????????????? | | ### !@%####??????????????????? | | ### ## !##?????????????????????? | | # # ## #??????????????????????? | | ## ### #?????????????????????? | | ###### #%###? ????????????????????? | | % #??# ###??? ???????????????????? | | ### ??? ??????????????????? | | ??# < ? #?????????????????? | | ??# ## #?????????????????? | | ??# ##### # ## ### ?????????????????? | | ??# ##???######? ???# ????????????????? | | ?? ???????????? ???? ???????????????? | | ?? ?????????? ??? ??????????????? | | ? % ????????? ??? ?????????????? | | ? ### % ????????? ????? ???????????????? | | ?#??? ????????? ?????? ?????????????????? | | ????? ?????????????????? ???????????????????? | | ??????????????????????????##?????????????????????? | | ?????????????????????????????????????????????????? | | ?????????????????????????????????????????????????? | | ?????????????????????????????????????????????????? | | ?????????????????????????????????????????????????? | | ?????????????????????????????????????????????????? | | ?????????????????????????????????????????????????? | | ?????????????????????????????????????????????????? | +----------------------------------------------------+ Best States ------------- Heat Dissipation 25 Energy Generation 14 Energy Capacity 480 Matter Stores 300 Matter Capacity 700 Sight Range 18 Terrain Scan Density 10 Evasion (%) 55 Recoil Reduction 2 Item Schematics ----------------- None Robot Schematics ------------------ None Fabricated ------------ Nothing Repaired ---------- Nothing Studied --------- None Alien Tech Used ----------------- None Achievements -------------- None Challenges ------------ None Game ------ Seed ShiftPortableTerrabomb Manual? 0 Play Time 00:07:26 Cumulative 1378.5 hours Start 2026.08.24 @ 18:57:16 End 2026.08.24 @ 19:04:14 Sessions 1 Manual Loads 0 Difficulty Rogue Special Mode None Game No. 1693 Rogue 1409 Adventurer 124 Explorer 160 Win Type - Total 72 Types 55/0/11/4/1/0/0/1/0/0 Lore% 92 Gallery% 84 Achievement% 74 Wizard Run 0 Options --------- Layout 0 ASCII 0 Keyboard 1 Movement Numpad Keybinds 0 Fullscreen 2 Font 18/X11 Map View 76x50 Zoom Use 0% Tactical HUD 1 Map Filters NONE Filters NONE Steam 1 RUN: 1b9d27ff-5b10-4eaa-abe8-5f8461b6f449